bitfinex-derivatives/quotes_SOLF0:USTF0_20250228
["timestamp","ask_amount","ask_price","bid_price","bid_amount"]
[1740728859927,7.8545,127.46,127.31,5.8947]
[1740728860132,17.8026,127.49,127.31,5.8947]
[1740728860728,0.05424433,127.41,127.39,0.05154138]
[1740728861733,4.433e-05,127.41,127.4,7.8577]
[1740728861929,4.433e-05,127.41,127.4,9.8696]
[1740728862127,4.433e-05,127.41,127.4,13.9244]
[1740728862325,4.433e-05,127.41,127.4,17.8444]
[1740728863033,3.9825,127.56,127.47,7.8531]
[1740728863230,5.8925,127.56,127.4,6.0667]
[1740728863536,1.38971142,127.55,127.4,6.0667]
[1740728863836,1.3890161,127.54,127.4,6.0667]
[1740728864030,7.8533,127.48,127.4,6.0667]
[1740728864238,14.18,127.52,127.4,6.0667]
[1740728864426,0.05305409,127.48,127.46,0.05833245]
[1740728866733,7.8534,127.47,127.46,0.05833245]
[1740728868142,7.90625409,127.48,127.46,0.05833245]
[1740728868734,0.05305409,127.48,127.46,0.05833245]
[1740728871140,7.90595409,127.48,127.46,0.05833245]
[1740728872038,7.847,127.58,127.46,3.97833245]
[1740728872240,20.3051,127.64,127.47,3.8058]
[1740728872432,3.9522,127.57,127.47,3.8058]
[1740728872637,7.8485,127.55,127.47,11.6591]
[1740728872840,1.9529,127.56,127.47,1.9121]
[1740728873041,9.8008,127.56,127.47,1.9121]
[1740728873344,0.05092062,127.53,127.5,0.05713321]
[1740728874639,0.05092062,127.53,127.52,7.8503]
[1740728875143,0.05092062,127.53,127.5,0.05713321]
[1740728875441,0.05092062,127.53,127.51,7.8508]
[1740728876342,0.05092062,127.53,127.52,7.8503]
[1740728879139,223.4013,127.6,127.5,0.05713321]
[1740728879343,215.5555,127.6,127.56,7.8475]
[1740728879743,215.5555,127.6,127.55,7.8483]
[1740728880047,215.5555,127.6,127.51,1.8867]
[1740728880243,1.99,127.61,127.51,1.8867]
[1740728880444,1.9529,127.62,127.54,0.0530629]
[1740728880947,1.9529,127.62,127.51,1.8867]
[1740728881147,3.9316,127.62,127.51,1.8867]
[1740728881547,3.9316,127.62,127.48,197.0289]
[1740728881844,0.0532259,127.58,127.55,0.05499338]
[1740728882741,7.8477,127.57,127.55,0.05499338]
[1740728882945,0.0532259,127.58,127.55,0.05499338]
[1740728883649,0.0532259,127.58,127.56,7.8478]
[1740728883846,0.0532259,127.58,127.55,0.05499338]
[1740728884047,5.9726,127.67,127.55,0.05499338]
[1740728884344,5.9726,127.67,127.52,14.3]
[1740728884345,5.9726,127.67,127.54,8.18326115]
[1740728884551,5.9726,127.67,127.55,3.887]
[1740728884745,3.9954,127.67,127.63,7.8432]
[1740728884951,10.59326366,127.69,127.55,198.887]
[1740728885353,0.04990767,127.66,127.64,0.05164089]
[1740728885553,10.59326366,127.69,127.55,198.887]
[1740728885753,0.0503135,127.66,127.64,0.05098671]
[1740728886054,10.59326366,127.69,127.59,14.28]
[1740728886250,0.0514552,127.66,127.64,0.05325512]
[1740728886547,10.59326366,127.69,127.64,0.05325512]
[1740728886745,10.59326366,127.69,127.64,7.89605512]
[1740728886946,3.8257,127.76,127.64,0.05325512]
[1740728887149,37.73,127.74,127.59,14.28]
[1740728887343,37.73,127.74,127.6,7.8449]
[1740728887548,0.05692264,127.68,127.65,0.04932875]
[1740728887752,37.73,127.74,127.55,217.267]
[1740728887943,0.0593223,127.68,127.65,0.0598934]
[1740728888144,37.73,127.74,127.55,217.267]
[1740728888145,428.21718717,127.73,127.55,217.267]
[1740728888455,214.83702624,127.72,127.57,7.8472]
[1740728888653,190.0,127.72,127.56,2.055]
[1740728888953,1.3868452,127.71,127.56,2.055]
[1740728889156,190.0,127.72,127.56,2.055]
[1740728889454,7.8436,127.63,127.62,0.05208165]
[1740728889650,0.04973567,127.65,127.55,1.9434]
[1740728889855,7.8452,127.61,127.55,1.9434]
[1740728890055,1.919,127.65,127.55,1.9434]
[1740728890756,0.06000132,127.61,127.59,0.05398394]
[1740728893055,0.06000132,127.61,127.52,2.055]
[1740728893256,1.919,127.65,127.52,2.055]
[1740728893456,1.919,127.65,127.49,3.9091]
[1740728893657,1.919,127.65,127.5,2.0345]
[1740728894156,1.919,127.65,127.53,7.8497]
[1740728894352,0.05603731,127.59,127.56,0.0592707]
[1740728896162,7.8472,127.57,127.56,0.0592707]
[1740728897966,7.90223731,127.59,127.56,0.0592707]
[1740728898167,0.05603731,127.59,127.57,7.8468]
[1740728898361,0.05603731,127.59,127.56,0.0592707]
[1740728898556,3.9551,127.65,127.56,0.0592707]
[1740728898766,27.4051,127.65,127.5,197.0345]
[1740728899063,7.8476,127.57,127.5,2.0345]
[1740728899257,14.2,127.62,127.55,7.8481]
[1740728899461,14.2,127.62,127.5,2.0345]
[1740728899658,0.0593609,127.6,127.57,0.05601191]
[1740728900063,0.05233577,127.6,127.57,0.05601191]
[1740728900259,0.05233577,127.6,127.49,196.95]
[1740728900463,1.38559406,127.63,127.5,7.8511]
[1740728900666,7.8483,127.56,127.49,1.95]
[1740728900970,37.65,127.62,127.49,1.95]
[1740728901266,1.38610697,127.61,127.46,2.0156]
[1740728901462,0.05653262,127.57,127.54,1.287e-05]
[1740728902064,27.42653262,127.57,127.54,1.287e-05]
[1740728902261,3.8041,127.56,127.54,1.287e-05]
[1740728902462,7.8485,127.55,127.54,1.287e-05]
[1740728902667,3.8041,127.56,127.54,1.287e-05]
[1740728902869,7.8485,127.55,127.54,1.287e-05]
[1740728903166,3.8041,127.56,127.54,1.287e-05]
[1740728903465,0.05653262,127.57,127.54,1.287e-05]
[1740728903973,7.8431,127.64,127.58,7.8461]
[1740728904265,7.8431,127.64,127.55,3.9919]
[1740728904568,50.21545466,127.65,127.55,3.9919]
[1740728904764,42.37305466,127.65,127.55,3.9919]
[1740728905165,0.05947163,127.61,127.59,0.05078569]
[1740728905761,42.37305466,127.65,127.59,0.05078569]
[1740728906864,0.05901823,127.63,127.59,0.05078569]
[1740728908668,7.90261823,127.63,127.59,0.05078569]
[1740728909270,7.8443,127.62,127.59,0.05078569]
[1740728909571,0.05901823,127.63,127.59,0.05078569]
[1740728909872,0.05901823,127.63,127.59,7.89658569]
[1740728911073,0.05901823,127.63,127.59,0.05078569]
[1740728912065,7.90271823,127.63,127.59,0.05078569]
[1740728912269,0.05901823,127.63,127.59,0.05078569]
[1740728912669,7.8454,127.6,127.59,0.05078569]
[1740728913367,3.92,127.6,127.5,2.0606]
[1740728913665,2.0427,127.61,127.5,7.8512]
[1740728913872,7.8483,127.56,127.5,7.8512]
[1740728914077,2.0427,127.61,127.52,7.8503]
[1740728914468,0.05758561,127.58,127.55,0.05741058]
[1740728914871,0.05758561,127.58,127.49,7.8518]
[1740728915069,0.05758561,127.58,127.47,34.46788695]
[1740728915266,14.08,127.59,127.47,34.46788695]
[1740728915465,7.8498,127.53,127.48,7.8523]
[1740728915672,37.53,127.59,127.47,32.40728695]
[1740728916273,0.05337377,127.54,127.52,0.05571993]
[1740728916476,14.08,127.59,127.52,0.05571993]
[1740728916667,7.8497,127.53,127.52,0.05571993]
[1740728917771,7.8506,127.52,127.47,7.8534]
[1740728918569,190.0,127.58,127.43,1.9682]
[1740728918776,191.38464683,127.57,127.4,32.40728695]
[1740728918963,227.44,127.59,127.49,0.05146325]
[1740728918964,0.05289257,127.52,127.49,0.05146325]
[1740728919171,14.06,127.52,127.4,32.40728695]
[1740728919575,7.8551,127.45,127.4,32.40728695]
[1740728919874,14.06,127.52,127.42,7.8565]
[1740728920075,14.06,127.52,127.37,2.0631]
[1740728920273,0.05208433,127.48,127.46,0.05591949]
[1740728920471,0.05208433,127.48,127.36,1.9081]
[1740728920668,14.06,127.52,127.36,1.9081]
[1740728920669,7.8539,127.47,127.46,0.05100262]
[1740728920873,0.05017228,127.43,127.38,2.0631]
[1740728921180,0.05017228,127.43,127.4,7.8573]
[1740728921478,0.05017228,127.43,127.39,0.05042554]
[1740728921874,0.05017228,127.43,127.41,7.8567]
[1740728922175,0.05017228,127.43,127.39,0.05042554]
[1740728922577,7.228e-05,127.43,127.42,7.8565]
[1740728923174,7.228e-05,127.43,127.42,11.7765]
[1740728923679,7.228e-05,127.43,127.42,206.7765]
[1740728923871,7.228e-05,127.43,127.42,208.745]
[1740728924379,10.59326366,127.57,127.42,200.8885]
[1740728924573,12.53106366,127.57,127.43,1.9351]
[1740728924776,1.9378,127.57,127.43,1.9351]
[1740728925571,0.05682726,127.51,127.49,0.05749038]
[1740728925772,1.9378,127.57,127.46,7.8538]
[1740728925973,0.05943604,127.51,127.49,0.05558278]
[1740728926375,0.05293003,127.51,127.49,0.05054675]
[1740728926883,7.90393003,127.51,127.49,0.05054675]
[1740728927078,0.05293003,127.51,127.49,0.05054675]
[1740728927479,7.90423003,127.51,127.49,0.05054675]
[1740728927883,0.05293003,127.51,127.49,7.90244675]
[1740728928187,0.05293003,127.51,127.49,0.05054675]
[1740728929683,0.05293003,127.51,127.5,7.8516]
[1740728929882,0.05293003,127.51,127.49,0.05054675]
[1740728930085,7.90393003,127.51,127.49,0.05054675]
[1740728930383,0.05293003,127.51,127.49,0.05054675]
[1740728930577,7.8516,127.5,127.49,0.05054675]
[1740728930778,0.05293003,127.51,127.43,195.0]
[1740728930978,0.05293003,127.51,127.39,1.9839]
[1740728931181,14.18,127.53,127.39,1.9839]
[1740728931383,1.38390514,127.52,127.39,1.9839]
[1740728931884,0.05761077,127.47,127.44,0.05998813]
[1740728932288,0.05761077,127.47,127.39,1.9839]
[1740728932480,3.9725,127.51,127.44,0.05729364]
[1740728932783,7.8531,127.48,127.44,0.05729364]
[1740728932980,0.05366879,127.49,127.44,0.05729364]
[1740728933980,7.90586879,127.49,127.44,7.91199364]
[1740728934187,0.05366879,127.49,127.44,0.05729364]
[1740728935185,7.90626879,127.49,127.44,7.91209364]
[1740728935787,7.8532,127.48,127.44,7.91209364]
[1740728935978,0.05366879,127.49,127.44,0.05729364]
[1740728936482,7.8545,127.46,127.44,0.05729364]
[1740728936885,7.90824466,127.46,127.44,0.05729364]
[1740728937293,7.8546,127.45,127.44,0.05729364]
[1740728937885,0.05374466,127.46,127.35,1.9172]
[1740728938085,1.9643,127.5,127.35,1.9172]
[1740728938590,7.8544,127.46,127.35,1.9172]
[1740728939291,0.05831865,127.43,127.41,0.05263512]
[1740728940589,0.05831865,127.43,127.42,7.8565]
[1740728940791,0.05831865,127.43,127.41,0.05263512]
[1740728943387,0.05831865,127.43,127.42,7.8565]
[1740728943788,7.8534,127.48,127.41,0.05263512]
[1740728943983,94.88749093,127.56,127.41,195.0]
[1740728944185,10.59326366,127.59,127.42,4.0248]
[1740728944393,7.8474,127.57,127.42,199.0248]
[1740728944688,7.8474,127.57,127.42,4.0248]
[1740728944895,18.44006366,127.58,127.42,4.0248]
[1740728945093,3.467e-05,127.51,127.48,0.05819705]
[1740728945397,10.59326366,127.58,127.48,195.0]
[1740728945589,10.59326366,127.58,127.49,2.0166]
[1740728945888,10.59326366,127.58,127.52,7.8499]
[1740728946093,7.8474,127.57,127.49,2.0166]
[1740728946294,0.05275282,127.56,127.54,0.05429103]
[1740728947096,0.05275282,127.56,127.43,2.0166]
[1740728947595,24.67326366,127.58,127.5,7.851]
[1740728947986,14.08,127.58,127.5,7.851]
[1740728948493,0.05001679,127.55,127.53,0.05260193]
[1740728948693,14.08,127.58,127.49,7.8521]
[1740728948896,0.05544134,127.55,127.53,0.05163773]
[1740728951289,7.90404134,127.55,127.53,0.05163773]
[1740728951489,0.05544134,127.55,127.53,0.05163773]
[1740728951894,7.90414134,127.55,127.53,0.05163773]
[1740728952904,0.05544134,127.55,127.53,0.05163773]
[1740728954800,7.8504,127.52,127.47,7.8532]
[1740728954996,3.789,127.6,127.44,1.9633]
[1740728955404,7.8517,127.5,127.44,1.9633]
[1740728955701,14.04,127.56,127.44,1.9633]
[1740728955995,7.90553185,127.51,127.49,0.05924504]
[1740728956401,0.0597749,127.51,127.49,0.05924504]
[1740728957103,7.8481,127.56,127.51,7.8505]
[1740728957297,3.789,127.6,127.44,196.9633]
[1740728957804,7.8474,127.57,127.44,196.9633]
[1740728958402,0.05138711,127.52,127.49,0.04954183]
[1740728958602,3.789,127.6,127.46,14.02]
[1740728958897,42.37305466,127.61,127.46,14.02]
[1740728959893,6.475e-05,127.55,127.52,0.05711753]
[1740728960300,42.37305466,127.61,127.46,14.02]
[1740728960603,1.8849,127.63,127.46,14.02]
[1740728960805,1.38063229,127.62,127.46,14.02]
[1740728961000,7.8484,127.56,127.46,14.02]
[1740728961199,0.05179088,127.56,127.53,0.05655375]
[1740728961398,7.8468,127.58,127.53,7.8496]
[1740728961599,0.05994178,127.56,127.53,0.0582676]
[1740728961903,0.05994178,127.56,127.46,14.02]
[1740728962104,7.8496,127.54,127.49,7.8517]
[1740728962301,1.9568,127.56,127.44,215.4233]
[1740728962601,7.8487,127.55,127.47,7.853]
[1740728962805,1.9568,127.56,127.44,215.4233]
[1740728963106,0.05522457,127.52,127.5,0.05801907]
[1740728963405,2.457e-05,127.52,127.51,7.8504]
[1740728966101,2.457e-05,127.52,127.51,11.6653]
[1740728966300,2.457e-05,127.52,127.51,17.4847]
[1740728967805,2.457e-05,127.52,127.51,13.5647]
[1740728968000,2.457e-05,127.52,127.51,7.8504]
[1740728968205,2.457e-05,127.52,127.5,0.05801907]
[1740728969098,2.457e-05,127.52,127.43,3.7395]
[1740728969304,2.457e-05,127.52,127.45,7.8546]
[1740728969503,215.3549,127.57,127.43,3.7395]
[1740728969703,1.3795395,127.56,127.43,3.7395]
[1740728970199,0.05432771,127.51,127.48,0.05076336]
[1740728970506,0.05432771,127.51,127.4,118.82671882]
[1740728970705,27.4505,127.54,127.4,118.82671882]
[1740728970904,7.8511,127.51,127.46,7.8538]
[1740728971407,27.4505,127.54,127.46,7.8538]
[1740728971605,0.05129268,127.5,127.47,0.05582097]
[1740728973204,0.05129268,127.5,127.39,6.0264]
[1740728973399,7.8533,127.48,127.42,7.856]
[1740728973607,7.8533,127.48,127.39,6.0264]
[1740728973806,14.14,127.51,127.39,6.0264]
[1740728974109,14.14,127.51,127.46,7.8539]
[1740728974506,0.05878032,127.5,127.48,7.8526]
[1740728974705,4.0005,127.54,127.47,0.05944407]
[1740728974910,0.05134163,127.46,127.39,6.0264]
[1740728975207,4.0005,127.54,127.41,0.0566152]
[1740728975398,4.0005,127.54,127.39,6.0264]
[1740728976411,6.405e-05,127.48,127.45,0.05933621]
[1740728976711,3.8905,127.58,127.42,14.12]
[1740728977112,7.8485,127.55,127.5,7.8511]
[1740728977307,3.8905,127.58,127.42,14.12]
[1740728977512,3.8905,127.58,127.49,7.8518]
[1740728977712,3.8905,127.58,127.42,14.12]
[1740728978012,7.8495,127.54,127.52,0.05713128]
[1740728978212,0.05622499,127.51,127.49,7.8518]
[1740728978510,0.0596711,127.51,127.49,0.05798358]
[1740728981315,0.0596711,127.51,127.49,7.90978358]
[1740728981622,0.0596711,127.51,127.49,0.05798358]
[1740728982419,0.0596711,127.51,127.49,7.90968358]
[1740728982619,0.0596711,127.51,127.49,0.05798358]
[1740728983721,0.0596711,127.51,127.49,7.90978358]
[1740728983924,0.0596711,127.51,127.49,0.05798358]
[1740728984922,18.2196711,127.51,127.39,2.0232]
[1740728985120,3.9266,127.5,127.39,2.0232]
[1740728985314,7.8549,127.45,127.39,9.881]
[1740728985519,3.9266,127.5,127.39,2.0232]
[1740728985718,7.8539,127.47,127.41,7.8567]
[1740728986016,3.9266,127.5,127.39,2.0232]
[1740728986226,7.8553,127.44,127.43,0.05479802]
[1740728986422,193.9266,127.5,127.37,32.40728695]
[1740728986819,3.9266,127.5,127.37,32.40728695]
[1740728987621,3.9266,127.5,127.42,0.05104704]
[1740728987825,0.05346115,127.45,127.37,32.40728695]
[1740728988026,3.9266,127.5,127.37,32.40728695]
[1740728988226,0.0588492,127.42,127.4,0.05908772]
[1740728988428,3.9266,127.5,127.37,32.40728695]
[1740728988723,3.9266,127.5,127.4,0.05098115]
[1740728988927,0.0521136,127.45,127.36,20.0609]
[1740728989123,3.9266,127.5,127.44,0.0493641]
[1740728989323,3.9266,127.5,127.36,20.0609]
[1740728989324,0.05045953,127.42,127.36,20.0609]
[1740728989522,7.854,127.46,127.4,7.8573]
[1740728989716,0.0513845,127.44,127.36,20.0609]
[1740728989922,7.8524,127.49,127.42,0.05300578]
[1740728990226,3.9266,127.5,127.36,20.0609]
[1740728990422,11.7783,127.5,127.44,7.8548]
[1740728990623,11.7783,127.5,127.36,20.0609]
[1740728991025,42.37305466,127.53,127.36,20.0609]
[1740728991230,1.27e-06,127.44,127.42,0.05006248]
[1740728991427,1.27e-06,127.44,127.37,1.44331401]
[1740728991428,42.37305466,127.53,127.48,7.8523]
[1740728991632,9.7446,127.54,127.43,14.28]
[1740728991929,4.0592,127.57,127.44,5.8154]
[1740728992120,4.0592,127.57,127.44,200.8154]
[1740728992522,0.05817145,127.52,127.51,7.8509]
[1740728993028,44.26845466,127.58,127.54,7.8491]
[1740728993225,42.37305466,127.58,127.54,7.8491]
[1740728993422,0.05508228,127.57,127.55,0.05675443]
[1740728993625,0.05508228,127.57,127.55,7.90525443]
[1740728994020,0.05508228,127.57,127.55,0.05675443]
[1740728994630,42.37305466,127.65,127.55,0.05675443]
[1740728994833,42.37305466,127.65,127.51,5.8126]
[1740728995028,7.8435,127.64,127.58,7.8461]
[1740728995228,42.37305466,127.65,127.51,200.8126]
[1740728995731,7.8448,127.61,127.51,200.8126]
[1740728995931,0.05832563,127.58,127.56,0.05560194]
[1740728996132,7.8437,127.63,127.58,7.8466]
[1740728996329,42.37305466,127.65,127.58,7.8466]
[1740728996729,7.8431,127.64,127.58,7.8466]
[1740728997127,5.8237,127.66,127.51,5.8126]
[1740728997337,7.8468,127.58,127.51,5.8126]
[1740728997529,7.8468,127.58,127.57,0.05092401]
[1740728997735,0.05644925,127.56,127.51,5.8126]
[1740728998029,7.8468,127.58,127.51,5.8126]
[1740728998234,0.05648959,127.55,127.52,0.05775235]
[1740728998433,14.28,127.61,127.51,2.0176]
[1740728998635,0.05548343,127.55,127.52,0.0526357]
[1740728998835,2.0399,127.6,127.51,2.0176]
[1740728999034,0.05161658,127.55,127.52,0.05363697]
[1740728999232,0.05161658,127.55,127.51,2.0176]
[1740728999435,0.05161658,127.55,127.52,0.05481169]
[1740729000536,7.8453,127.61,127.52,2.00691169]
[1740729000737,1.9372,127.65,127.53,1.9717]
[1740729001937,0.05944777,127.6,127.58,0.04973183]
[1740729002128,7.90534777,127.6,127.58,0.04973183]
[1740729002326,1.9372,127.65,127.58,0.04973183]
[1740729002530,0.05285654,127.6,127.58,0.04973183]
[1740729002737,7.8458,127.6,127.58,0.04973183]
[1740729002938,3.97665285,127.6,127.44,14.26]
[1740729003140,3.9407,127.59,127.45,3.9773]
[1740729003436,3.9407,127.59,127.5,7.8511]
[1740729003629,3.9407,127.59,127.45,1.9639]
[1740729003828,3.9407,127.59,127.46,2.0134]
[1740729004029,0.05179622,127.53,127.51,0.0592549]
[1740729004232,229.52023238,127.67,127.51,0.0592549]
[1740729004434,7.8466,127.59,127.53,7.8492]
[1740729004634,3.9407,127.66,127.46,197.0134]
[1740729004837,3.9407,127.66,127.46,2.0134]
[1740729005035,7.8458,127.6,127.46,2.0134]
[1740729005235,27.5007,127.66,127.46,2.0134]
[1740729005436,0.05049051,127.54,127.53,7.8497]
[1740729005634,27.5007,127.66,127.46,197.0134]
[1740729005834,0.0530111,127.55,127.52,0.05186726]
[1740729006039,0.0530111,127.55,127.53,7.8497]
[1740729006340,0.05254839,127.55,127.52,0.05175985]
[1740729006638,1.37858506,127.65,127.46,2.0134]
[1740729006832,0.05060251,127.55,127.52,0.05860958]
[1740729007235,3.9407,127.66,127.46,197.0134]
[1740729007429,1.004e-05,127.55,127.52,0.05013001]
[1740729007634,1.004e-05,127.55,127.54,7.8491]
[1740729007839,7.8446,127.62,127.52,3.9144]
[1740729008244,7.8456,127.6,127.55,7.8483]
[1740729008739,0.05248239,127.59,127.56,0.05507989]
[1740729009039,7.8467,127.58,127.56,0.05507989]
[1740729009238,0.05248239,127.59,127.46,14.2]
[1740729009439,7.8483,127.56,127.48,4.09]
[1740729009636,2.0399,127.65,127.48,4.09]
[1740729009829,1.9673,127.63,127.48,4.09]
[1740729010439,0.05205293,127.57,127.54,9.213e-05]
[1740729010837,5.9141,127.57,127.43,2.0298]
[1740729011136,7.8506,127.52,127.47,7.853]
[1740729011340,1.9673,127.56,127.43,2.0298]
[1740729011540,1.9673,127.56,127.43,197.0298]
[1740729011738,0.0530427,127.51,127.48,0.05207201]
[1740729012137,0.0530427,127.51,127.43,197.0298]
[1740729012344,0.0530427,127.51,127.5,7.8516]
[1740729012542,1.9673,127.56,127.48,0.05800847]
[1740729012739,7.22e-05,127.52,127.48,0.05800847]
[1740729013041,7.22e-05,127.52,127.47,2.0627]
[1740729013240,7.22e-05,127.52,127.43,2.0298]
[1740729013241,1.9941,127.57,127.44,2.0627]
[1740729013943,0.05353514,127.52,127.5,7.8512]
[1740729014143,1.9941,127.57,127.44,2.0627]
[1740729014343,0.050926,127.52,127.5,0.0548963]
[1740729014545,0.050926,127.52,127.47,7.8532]
[1740729014741,1.9018,127.55,127.43,2.0298]
[1740729015845,0.05937349,127.5,127.48,0.05395007]
[1740729016045,1.9018,127.55,127.48,0.05395007]
[1740729016246,0.05344708,127.5,127.48,7.90665007]
[1740729016438,7.8502,127.53,127.48,7.90665007]
[1740729016638,0.05944443,127.5,127.48,7.90665007]
[1740729017146,4.443e-05,127.5,127.49,7.8522]
[1740729018551,4.443e-05,127.5,127.49,9.8047]
[1740729018753,4.443e-05,127.5,127.49,7.8522]
[1740729020554,4.443e-05,127.5,127.48,0.05395007]
[1740729021049,4.443e-05,127.5,127.4,1.9653]
[1740729021248,1.9884,127.54,127.4,5.9099]
[1740729022047,1.9884,127.54,127.4,3.9446]
[1740729022352,0.05137377,127.48,127.46,9.434e-05]
[1740729022550,7.8534,127.47,127.46,9.434e-05]
[1740729022753,1.9884,127.47,127.35,3.9446]
[1740729023146,7.8541,127.46,127.35,3.9446]
[1740729023353,1.9884,127.47,127.35,3.9446]
[1740729023554,0.05939414,127.42,127.39,0.05762817]
[1740729023949,1.9252,127.52,127.4,14.08]
[1740729024148,1.9252,127.52,127.4,16.0257]
[1740729024450,1.9033,127.53,127.4,16.0257]
[1740729024451,1.9033,127.53,127.4,219.21843327]
[1740729024647,224.05326366,127.56,127.4,219.21843327]
[1740729024852,10.59326366,127.56,127.4,219.21843327]
[1740729025258,0.05463822,127.49,127.47,0.05198994]
[1740729025452,0.05463822,127.49,127.48,7.8528]
[1740729025652,10.59326366,127.56,127.4,432.71602302]
[1740729025850,0.04968008,127.5,127.49,7.8522]
[1740729026256,10.59326366,127.56,127.48,1.965]
[1740729026452,0.05195495,127.51,127.48,2.02487677]
[1740729026660,10.59326366,127.56,127.48,1.965]
[1740729026855,10.59326366,127.56,127.49,2.0574]
[1740729027060,10.59326366,127.56,127.54,7.8485]
[1740729027258,10.59326366,127.56,127.49,2.0574]
[1740729027454,6.366e-05,127.56,127.49,197.0574]
[1740729027659,18.40108408,127.64,127.49,197.0574]
[1740729027962,0.05134259,127.54,127.51,0.05853747]
[1740729028156,10.55798408,127.64,127.51,195.05853747]
[1740729028362,10.55798408,127.64,127.51,195.0]
[1740729028558,10.55798408,127.64,127.58,7.8464]
[1740729028762,10.55798408,127.64,127.56,14.08]
[1740729029460,0.05920862,127.61,127.59,0.0507669]
[1740729030657,0.05920862,127.61,127.51,14.06]
[1740729030858,3.9273,127.63,127.51,14.06]
[1740729031560,17.9873,127.63,127.51,14.06]
[1740729031865,7.8499,127.53,127.47,32.40728695]
[1740729032360,0.05542777,127.52,127.49,0.05356265]
[1740729032862,0.05105957,127.52,127.49,0.05735805]
[1740729033065,3.97105957,127.52,127.47,32.40728695]
[1740729033266,0.05105957,127.52,127.47,29.30958695]
[1740729033463,7.8528,127.48,127.47,17.68738695]
[1740729033661,7.8528,127.48,127.37,21.58998695]
[1740729033862,191.9055,127.54,127.37,21.58998695]
[1740729034061,1.9055,127.54,127.37,21.58998695]
[1740729034261,0.05697911,127.47,127.44,0.05523432]
[1740729034466,1.9055,127.54,127.37,21.58998695]
[1740729034771,0.05601278,127.47,127.44,0.05918228]
[1740729034964,1.966,127.55,127.44,0.05918228]
[1740729035269,1.966,127.55,127.44,1.9023]
[1740729035861,1.9988,127.6,127.45,1.8736]
[1740729036065,0.05152178,127.51,127.48,0.04932501]
[1740729036263,1.9988,127.6,127.45,1.8736]
[1740729036463,0.0541902,127.51,127.48,0.04958702]
[1740729036760,1.9988,127.6,127.45,1.8736]
[1740729036962,1.9988,127.6,127.48,0.05803376]
[1740729037261,7.90673105,127.54,127.51,0.05973411]
[1740729037465,1.9988,127.6,127.45,1.8736]
[1740729037666,1.38004105,127.59,127.45,1.8736]
[1740729038467,1.38004105,127.59,127.44,1.9023]
[1740729038667,0.05200647,127.53,127.51,0.05898152]
[1740729038864,0.05200647,127.53,127.44,1.9023]
[1740729039072,3.8275,127.58,127.44,1.9023]
[1740729039263,0.05237922,127.5,127.48,7.8527]
[1740729039566,3.8275,127.58,127.44,1.9023]
[1740729039771,0.04949545,127.5,127.48,0.05534956]
[1740729039962,7.8496,127.54,127.47,7.8533]
[1740729040161,0.05823366,127.5,127.48,0.05191897]
[1740729040360,1.37996791,127.57,127.44,1.9023]
[1740729040564,0.0536879,127.5,127.48,0.05524978]
[1740729040867,3.8275,127.58,127.44,1.9023]
[1740729041063,0.05712925,127.5,127.48,0.05123204]
[1740729041368,3.8275,127.58,127.45,2.0355]
[1740729041568,0.05114379,127.5,127.48,0.05262676]
[1740729041866,0.0538202,127.5,127.44,1.9023]
[1740729042065,0.0538202,127.5,127.48,0.05616955]
[1740729045167,7.8522,127.49,127.48,0.05616955]
[1740729045574,7.9059202,127.5,127.48,0.05616955]
[1740729045763,0.0538202,127.5,127.48,0.05616955]
[1740729045968,0.0538202,127.5,127.41,2.0506]
[1740729046272,37.58,127.53,127.43,7.8554]
[1740729046874,37.58,127.53,127.41,2.0506]
[1740729047171,0.05456678,127.48,127.46,0.05805695]
[1740729047372,14.02,127.53,127.47,7.8529]
[1740729047570,0.05090863,127.48,127.47,7.8529]
[1740729047774,7.8511,127.51,127.49,0.04931633]
[1740729047971,7.8511,127.51,127.47,7.8529]
[1740729048169,0.05305876,127.51,127.49,0.05291107]
[1740729048374,7.8481,127.56,127.44,14.02]
[1740729048574,0.05180971,127.51,127.49,0.05808863]
[1740729048775,15.9529,127.58,127.49,0.05808863]
[1740729048977,1.9329,127.58,127.45,3.9432]
[1740729049379,1.9329,127.58,127.53,7.8493]
[1740729049978,1.9329,127.58,127.45,3.9432]